Cogmind - Beta 12 *** ADVENTURER MODE // 2023.10.05 @ 22:39:07 // Winter2022/Polymind Player: Daemos Result: Destroyed by S-10 Pest with Light Assault Rifle Performance ------------- Evolutions (2) 1000 Regions Visited (6) 1200 Robots Destroyed (9) 45 Value Destroyed (284) 284 Prototype IDs (0) 0 Alien Tech Used (0) 0 Bonus (2925) 2925 TOTAL SCORE: 5254 Bonus ------- Polymind Skill 2492 Pacifist 200 Follower Combat Kills 33 Entered Garrisons 200 Cogmind --------- Core Integrity 0/550 Matter 0/0 Energy 23/25 System Corruption 0% Temperature Cool (0) Movement Rolling (100) Location -8/Materials Parts ------- > --- POWER (1) -------- (None) > --- PROPULSION (2) --- Compact Wheel Compact Wheel > --- UTILITY (2) ------ Small Storage Unit > --- WEAPON (0) ------- (None) > --- INVENTORY (4) ---- Light Deuterium Engine Peak State ------------ > --- POWER ------------ Light Nuclear Core > --- PROPULSION ------- Carbon-fiber Leg Carbon-fiber Leg > --- UTILITY ---------- Targeting Computer > --- WEAPON ----------- Assault Rifle Gauss Rifle > --- INVENTORY -------- (None) [Rating: 15] Favorites ----------- Power Improved Ion Engine Engine Improved Ion Engine Power Core Light Nuclear Core Propulsion Light Treads Treads Light Treads Leg Aluminum Leg Wheel Compact Wheel Flight Unit Flight Unit Utility Heat Sink Device Heat Sink Storage Small Storage Unit Processor Targeting Computer Protection Light Armor Plating Weapon Beam Rifle Energy Gun Beam Rifle Ballistic Gun Heavy Assault Rifle Special Weapon Mining Laser Build | -11 -10 -9 -9 -8 -8 -8 ------- Run | Jun Mat Mat Min Mat Gar Mat Slots Evolved . | . . . . . . . Power . | . . . . . . . Propulsion . | . . . . . . . Utility . | . . . . . . . Weapon . | . . . . . . . Parts Attached . | . . . . . . . Power . | . . . . . . . Engine . | . . . . . . . Core . | . . . . . . . Reactor . | . . . . . . . Propulsion . | . . . . . . . Treads . | . . . . . . . Leg . | . . . . . . . Wheel . | . . . . . . . Hover . | . . . . . . . Flight . | . . . . . . . Utility . | . . . . . . . Device . | . . . . . . . Storage . | . . . . . . . Processor . | . . . . . . . Hackware . | . . . . . . . Protection . | . . . . . . . Artifact . | . . . . . . . Weapon . | . . . . . . . Energy Gun . | . . . . . . . Energy Cannon . | . . . . . . . Ballistic Gun . | . . . . . . . Ballistic Cannon . | . . . . . . . Launcher . | . . . . . . . Special Weapon . | . . . . . . . Impact Weapon . | . . . . . . . Slashing Weapon . | . . . . . . . Piercing Weapon . | . . . . . . . Special Melee Weapon . | . . . . . . . Unidentified Prototypes . | . . . . . . . Parts Lost 4 | . . . 1 1 . 2 Power 1 | . . . . . . 1 Propulsion . | . . . . . . . Utility 2 | . . . . 1 . 1 Weapon 1 | . . . 1 . . . Highest Loss Streak 2 | . . . 1 1 . 2 To Critical Strikes . | . . . . . . . Average Slot Usage (%) 89 | . 100 70 97 93 54 91 Engine 11 | . 20 14 20 11 . 18 Core 1 | . . . . . 10 . Treads 14 | . . . . 21 . . Leg 2 | . . . . . 21 . Wheel 8 | . 40 28 16 2 . 36 Flight 1 | . . . 25 . . . Device 19 | . 20 14 16 22 10 18 Storage 3 | . 20 14 . 1 . 18 Protection 6 | . . . . 10 . . Energy Gun 7 | . . . . 10 10 . Ballistic Gun 8 | . . . 12 11 . . Naked Turns 178 | . . 33 7 24 100 14 Heaviest Build 18 | 9 9 9 6 18 9 9 Greatest Support 40 | 32 32 32 20 40 20 32 Greatest Overweight (x) . | . . . . . . . Average Overweight (x) . | . . . . . . . Largest Inventory Capacity 4 | 4 4 4 . 1 1 4 Average Capacity 1 | 1 4 2 . . . 3 Most Carried 4 | . 4 4 . . . 1 Average Carried . | . 3 2 . . . . Final Capacity 4 | 4 4 . . . . 4 Final Carried 4 | . 4 . . . . 1 Class Distribution -------------------- 56% | Sentry 13% | Recycler 8% | Cogmind 5% | Grunt 5% | Worker 4% | Tunneler 3% | Swarmer Dominant Class ---------------- Recycler | -10/Materials Recycler | -9/Materials Swarmer | -9/Mines Sentry | -8/Materials Grunt | -8/Garrison Recycler | -8/Materials Resources | -11 -10 -9 -9 -8 -8 -8 ----------- Run | Jun Mat Mat Min Mat Gar Mat Matter Collected 28 | . . . 28 . . . Remotely . | . . . . . . . Salvage Created 220 | . . . 113 . 107 . Parts 13 | . . . 7 4 2 . Haulers Intercepted . | . . . . . . . Recyclers Shooed . | . . . . . . . Parts Field Recycled . | . . . . . . . Retrieved Matter . | . . . . . . . Parts Self-Destructed . | . . . . . . . Prevented . | . . . . . . . Kills | -11 -10 -9 -9 -8 -8 -8 ------- Run | Jun Mat Mat Min Mat Gar Mat Combat Hostiles Destroyed 9 | . . . 6 1 2 . Melee 1 | . . . 1 . . . Guns 8 | . . . 5 1 2 . Classes Destroyed 3 | . . . 2 1 . . Swarmer 3 | . . . 3 . . . Grunt 5 | . . . 3 . 2 . Sentry 1 | . . . . 1 . . Best Kill Streak 5 | . . . 5 1 2 . Combat Bots Only 5 | . . . 5 1 2 . Max Kills in Single Turn 1 | . . . 1 1 1 . Gunslinging . | . . . . . . . Exploded . | . . . . . . . Melee 1 | . . . 1 . . . Uniques/NPCs Destroyed . | . . . . . . . Combat | -11 -10 -9 -9 -8 -8 -8 -------- Run | Jun Mat Mat Min Mat Gar Mat Damage Taken 1281 | . . 50 352 294 441 144 Core 715 | . . 50 112 196 312 45 Absorbed by Shields . | . . . . . . . Core Remaining (%) 86 | 100 100 . 59 . . . Volleys Fired 50 | . . . 28 3 19 . Largest 2 | . . . 1 2 1 . Hottest 100 | . . . 100 79 65 . Shots Fired 53 | . . . 28 6 19 . Gun 52 | . . . 27 6 19 . Cannon . | . . . . . . . Launcher . | . . . . . . . Special 1 | . . . 1 . . . Kinetic 30 | . . . 27 3 . . Thermal 23 | . . . 1 3 19 . Explosive . | . . . . . . . Electromagnetic . | . . . . . . . Robot Hit Streak 11 | . . . 11 6 8 . Robot Miss Streak 2 | . . . 2 . 1 . Penetration Max . | . . . . . . . Secondary Targets . | . . . . . . . Shots Hit Robots 41 | . . . 20 6 15 . Core Hits 23 | . . . 17 2 4 . Critical Kills . | . . . . . . . Critical Parts Destroyed . | . . . . . . . Critical Strikes . | . . . . . . . Melee Attacks . | . . . . . . . Impact . | . . . . . . . Slashing . | . . . . . . . Piercing . | . . . . . . . Sneak Attacks . | . . . . . . . Combat Hostiles . | . . . . . . . Follow-up Attacks . | . . . . . . . Damage Inflicted 552 | . . 2 192 96 262 . Guns 516 | . . . 176 96 244 . Cannons . | . . . . . . . Explosions . | . . . . . . . Melee . | . . . . . . . Ramming 36 | . . 2 16 . 18 . Kinetic 225 | . . . 176 49 . . Thermal 291 | . . . . 47 244 . Explosive . | . . . . . . . Electromagnetic . | . . . . . . . Impact . | . . . . . . . Slashing . | . . . . . . . Piercing . | . . . . . . . Highest Corruption . | . . . . . . . Average Corruption . | . . . . . . . Corruption Purged . | . . . . . . . Corruption Blocked . | . . . . . . . Overload Shots . | . . . . . . . Overflow Damage . | . . . . . . . Projectiles . | . . . . . . . Explosions . | . . . . . . . Melee . | . . . . . . . Knockbacks . | . . . . . . . Impact . | . . . . . . . Kinetic . | . . . . . . . Secondary . | . . . . . . . Self-Inflicted Damage 16 | . . 1 6 . 9 . Shots . | . . . . . . . Rammed 11 | . . 1 8 . 2 . Targets Rammed 11 | . . 1 8 . 2 . Kicked . | . . . . . . . Crushed . | . . . . . . . Highest Temperature 155 | . . . 80 30 155 8 Average Temperature 41 | . . . 23 11 91 4 Received Heat Transfer 534 | . . 36 48 144 270 36 Siege Activations . | . . . . . . . Robots Corrupted . | . . . . . . . Combat Hostiles . | . . . . . . . Parts Fried . | . . . . . . . Impact Corruptions . | . . . . . . . Robots Melted . | . . . . . . . Combat Hostiles . | . . . . . . . Parts Melted . | . . . . . . . Heat Transferred 666 | . . . . 111 555 . Parts Sabotaged . | . . . . . . . Parts Stolen . | . . . . . . . Parts Stripped . | . . . . . . . Power Chain Reactions . | . . . . . . . Missiles Intercepted . | . . . . . . . Alert | -11 -10 -9 -9 -8 -8 -8 ------- Run | Jun Mat Mat Min Mat Gar Mat Peak Influence 350 | . . 150 234 350 291 165 Initial 200 | . . . 49 73 200 121 Average 99 | . . 44 176 78 245 126 Maximum Alert Level 1 | . . . 1 1 1 . Low Security (%) 73 | 100 100 100 79 77 . 100 Level 1 26 | . . . 20 22 100 . Level 2 . | . . . . . . . Level 3 . | . . . . . . . Level 4 . | . . . . . . . Level 5 . | . . . . . . . High Security . | . . . . . . . Max Security . | . . . . . . . Squads Dispatched 6 | . . . . 5 . 1 Investigation 1 | . . . . 1 . . Extermination . | . . . . . . . Reinforcement 5 | . . . . 4 . 1 Assault . | . . . . . . . Garrison . | . . . . . . . Intercept . | . . . . . . . Searches Triggered . | . . . . . . . Construction Impeded . | . . . . . . . Haulers Reinforced . | . . . . . . . Active Scanning Responses . | . . . . . . . Cargo Convoy Interrupts . | . . . . . . . Stealth | -11 -10 -9 -9 -8 -8 -8 --------- Run | Jun Mat Mat Min Mat Gar Mat Distress Signals 1 | . . . . 1 . . Communications Jammed . | . . . . . . . Distress Signals . | . . . . . . . Times Spotted 73 | . . 7 19 27 13 7 Peak Tracking Total 16 | . . 6 8 16 7 6 Tactical Retreats 6 | . . . 1 3 2 . Traps | -11 -10 -9 -9 -8 -8 -8 ------- Run | Jun Mat Mat Min Mat Gar Mat Traps Triggered 1 | . . . . 1 . . Indirectly . | . . . . . . . Trap Hack Attempts . | . . . . . . . Triggered . | . . . . . . . Disarmed . | . . . . . . . Reprogrammed . | . . . . . . . Reused . | . . . . . . . Traps Extracted . | . . . . . . . Installed . | . . . . . . . Triggered . | . . . . . . . Machines | -11 -10 -9 -9 -8 -8 -8 ---------- Run | Jun Mat Mat Min Mat Gar Mat Machines Disabled . | . . . . . . . Max in Single Turn . | . . . . . . . Machines Repaired . | . . . . . . . Machines Sabotaged . | . . . . . . . Overloaded Fab Kills . | . . . . . . . Hacking | -11 -10 -9 -9 -8 -8 -8 --------- Run | Jun Mat Mat Min Mat Gar Mat Machines Accessed 3 | . . . . 2 1 . Terminals 2 | . . . . 1 1 . Fabricators . | . . . . . . . Repair Stations . | . . . . . . . Recycling Units . | . . . . . . . Scanalyzers . | . . . . . . . Garrison Access 1 | . . . . 1 . . Total Hacks 5 | . . . . 4 1 . Successful 2 | . . . . 1 1 . Failed 3 | . . . . 3 . . Catastrophic 2 | . . . . 2 . . Database Lockouts . | . . . . . . . Manual 3 | . . . . 3 . . Terminals 4 | . . . . 3 1 . Fabricators . | . . . . . . . Repair Stations . | . . . . . . . Recycling Units . | . . . . . . . Scanalyzers . | . . . . . . . Garrison Access 1 | . . . . 1 . . Terminal Hacks 1 | . . . . . 1 . Open Door 1 | . . . . . 1 . Fabricator Hacks . | . . . . . . . Repair Station Hacks . | . . . . . . . Recycling Unit Hacks . | . . . . . . . Scanalyzer . | . . . . . . . Garrison Access Hacks 1 | . . . . 1 . . Unlock Access 1 | . . . . 1 . . Unauthorized Hacks . | . . . . . . . Terminals . | . . . . . . . Fabricators . | . . . . . . . Repair Stations . | . . . . . . . Recycling Units . | . . . . . . . Scanalyzers . | . . . . . . . Garrison Access . | . . . . . . . Data Cores Recovered . | . . . . . . . Used . | . . . . . . . Hacking Detections 1 | . . . . 1 . . Full Trace Events 1 | . . . . 1 . . Feedback Events . | . . . . . . . Feedback Blocked . | . . . . . . . Robot Schematics Acquired . | . . . . . . . Robots Built . | . . . . . . . Authchips . | . . . . . . . Time . | . . . . . . . Total Robot Build Rating . | . . . . . . . Part Schematics Acquired . | . . . . . . . Parts Built . | . . . . . . . Authchips . | . . . . . . . Time . | . . . . . . . Total Part Build Rating . | . . . . . . . Parts Repaired . | . . . . . . . Time . | . . . . . . . Parts Recycled . | . . . . . . . Recycled Matter . | . . . . . . . Retrieved Matter . | . . . . . . . Retrieved Components . | . . . . . . . Parts Scanalyzed . | . . . . . . . Part Schematics Acquired . | . . . . . . . Parts Damaged . | . . . . . . . Bothacking | -11 -10 -9 -9 -8 -8 -8 ------------ Run | Jun Mat Mat Min Mat Gar Mat Used RIF Installer . | . . . . . . . Robots Hacked 6 | . . . 1 3 1 1 Non-combat 1 | . . . . . . 1 Combat 5 | . . . 1 3 1 . Robot Hacks Applied 9 | . . . 1 6 1 1 find_recycling 1 | . . . . . . 1 find_shortcuts 5 | . . . 1 3 1 . find_garrison 3 | . . . . 3 . . Relay Couplers Released . | . . . . . . . Fabnet Peak Effective % . | . . . . . . . Robots Rewired . | . . . . . . . Allies Hacked . | . . . . . . . Hacks Repelled . | . . . . . . . Allies | -11 -10 -9 -9 -8 -8 -8 -------- Run | Jun Mat Mat Min Mat Gar Mat Total Allies 1 | . . . . . 1 . Largest Group 1 | . . . . . 1 . Highest-Rated Group 20 | . . . . . 20 . Highest-Rated Ally 20 | . . . . . 20 . Total Orders . | . . . . . . . Ally Attacks 6 | . . . . . 6 . Total Damage 212 | . . . . . 212 . Kills 1 | . . . . . 1 . Allies Corrupted . | . . . . . . . Allies Melted . | . . . . . . . Intel | -11 -10 -9 -9 -8 -8 -8 ------- Run | Jun Mat Mat Min Mat Gar Mat Robot Analysis Total 7 | 1 . . 2 3 1 . Derelict Logs Recovered 1 | . . . 1 . . . Drone Launches . | . . . . . . . Drone Recoveries . | . . . . . . . Exploration | -11 -10 -9 -9 -8 -8 -8 ------------- Run | Jun Mat Mat Min Mat Gar Mat Turns Passed 2157 | 15 112 96 156 1432 222 124 Spaces Moved 1185 | 25 107 114 155 440 208 136 Core 421 | 18 . 51 13 174 139 26 Treads 149 | . . . . 149 . . Legs 105 | . . . . 36 69 . Wheels 432 | 7 107 63 64 81 . 110 Hover . | . . . . . . . Flight 78 | . . . 78 . . . Fastest Speed 37 | 50 100 50 37 50 50 50 Average Speed 84 | 64 100 77 55 98 73 90 Slowest Speed 160 | 100 100 100 80 160 120 100 Overloaded Moves . | . . . . . . . Propulsion Burnouts . | . . . . . . . Robots Hopped . | . . . . . . . Cave-ins Triggered . | . . . . . . . Exploration Rate (%) 26 | 3 20 17 28 56 39 20 Regions Visited 6 Branch Regions 1 Pre-discovered Areas . | . . . . . . . Known Exits Taken 1 | . . . . 1 . . Unknown Exits Taken 4 | 1 1 1 1 . . . Scrap Searched . | . . . . . . . Spaces Dug . | . . . . . . . Terrain Destroyed . | . . . . . . . Melee . | . . . . . . . Projectile . | . . . . . . . AOE . | . . . . . . . Terrain Rammed . | . . . . . . . Walls Destroyed . | . . . . . . . Machines Disabled . | . . . . . . . Actions | -11 -10 -9 -9 -8 -8 -8 --------- Run | Jun Mat Mat Min Mat Gar Mat Total 2282 | 24 112 120 199 1432 258 137 Wait 1026 | . . 6 3 990 27 . Move 1179 | 24 106 113 154 439 207 136 Hop . | . . . . . . . Pick Up 6 | . 5 . . . . 1 Fast Attach . | . . . . . . . Attach . | . . . . . . . Detach . | . . . . . . . Swap . | . . . . . . . Drop . | . . . . . . . Fire 50 | . . . 28 3 19 . Melee . | . . . . . . . Ram 11 | . . 1 8 . 2 . Kick . | . . . . . . . Crush . | . . . . . . . Escape Stasis . | . . . . . . . Rewire 3 | . . . . . 3 . Trap . | . . . . . . . Miscellaneous 7 | . 1 . 6 . . . Route ------- -11/Junkyard -10/Materials -9/Materials -9/Mines -8/Materials (discovered 2 exits: *Sto / Gar) -8/Garrison -8/Materials History --------- Turn | Location | Event 7 | -11/Junkyard | Discovered new exit (range 12) 16 | -11/Junkyard | Entered Materials 110 | -10/Materials | Discovered new exit (range 8) 128 | -10/Materials | Entered another Materials area 219 | -9/Materials | Discovered new exit (range 7) 224 | -9/Materials | Entered Mines 303 | -9/Mines | Found a damaged Exp. Sensor Array with a note attached 308 | -9/Mines | Discovered new exit (range 10) 380 | -9/Mines | Entered Materials 381 | -8/Materials | Identified exit to Storage 1812 | -8/Materials | Identified exit to Garrison 1812 | -8/Materials | Entered Garrison 1830 | -8/Garrison | Triggered checkpoint 1848 | -8/Garrison | Core integrity fell below 50% 1850 | -8/Garrison | Rescued a captive Derelict 1992 | -8/Garrison | Triggered checkpoint 2003 | -8/Garrison | Core integrity fell below 20% 2018 | -8/Garrison | Triggered checkpoint 2030 | -8/Garrison | Discovered new exit (range 10) 2034 | -8/Garrison | Entered Materials 2158 | -8/Materials | Destroyed by S-10 Pest with Light Assault Rifle Last Messages --------------- Attempting to rewire G-47 Trooper. G-47 Trooper is rebooting, system inaccessible. G-47 Trooper reactivates. Critical hit (Burn: +37). Beams of light sweep through the air. An alarm sounds. Penetrated by Slug. EXIT=FOUND LOCATION=UNKNOWN GOAL=ESCAPE Took control of R-06 Scavenger. Acquired Lgt. Deuterium Engine. K-01 Serf collects debris. O-16 Technician: "IFF HANDSHAKE FAILED. SECURING TERMINAL." ALERT: Hostiles spotted, dispatching reinforcements to Terminal M006. K-01 Serf collects debris. Tractor Beam destroyed. T-07 Excavator is excavating. Lgt. Ion Engine destroyed. T-07 Excavator is excavating. U-05 Engineer lays Concrete. Map ----- +----------------------------------------------------+ | ??????# """ #?????????!????!???????????????????? | | ??????# """ #??????????!!!!????????????????????? | | ??????# =#??????????????????????????????????? | | ??????# #??????????????????????????????????? | | ????????= #######????????????????????????????? | | ##########+### #????????????????????????????? | | #????????????????????????????? | | #????????????????????????????? | | #????????????????????????????? | | #+############ #????????????????????????????? | | ???]?????????## ##????????????????????????????? | | ??????????????# #?????????????????????????????? | | ????]?????????# #?????????????????????????????? | | ??????????????# #?????????????????????????????? | | ???//!????????# #?????????????????????????????? | | ???/!!????????# #?????????????????????????????? | | ???/!????###??# #???????????#?????????????????? | | ?????????? ?# #????????? #?????????????????? | | ??????????? # #???????? ??????????????????? | | ???????????? # #????### ?????????????????? | | ??????????? + #????""" """ ?"??????????????? | | ???????#"" # #?##?"Y """ ""?????????????? | | ???????# # #?# #"""? """ """ ??????????? | | ???????######## ### #? #?????????? | | ?????????????# ###u### ! #?????????? | | ?????????????# uY ss r !! #?????????? | | ??????!??????# s !! === +?????????? | | ?????????????# l === #?????????? | | ?????????????# ### = == ??????????? | | ?????????????#######?# ####+######## ??????????? | | ??]????*?????????????# #???????????????????????? | | ?????????????????????# #???????????????????????? | | ??!???=??????????????# #?]?????????????????????? | | ?????????????????????# #???????????????????????? | | ?????????????????????# #???????????????????????? | | ?????????????????????# #???????????????????????? | | ?????????????????????# #???????????????????????? | | ?????????????????????# #???????????????????????? | | ?????????????????????? ????????????????????????? | | ????????????????????????????????????????????????? | | ????????????]???????????????????????????????????? | | ????????????????????????????????????????????????? | | ????????????????????????????????????????????????? | | ????????????????????????????????????????????????? | | ????????????????????????????????????????????????? | | ????????????????????????????????????????????????? | | ????????????????????????????????????????????????? | | ????????????????????????????????????????????????? | | ????????????????????????????????????????????????? | | ????????????????????????????????????????????????? | +----------------------------------------------------+ Best States ------------- Heat Dissipation 40 Energy Generation 19 Energy Capacity 215 Matter Stores 200 Matter Capacity 200 Sight Range 16 Terrain Scan Range 16 Terrain Scan Density 10 Armor Coverage 150 Resistance: KI 45 Resistance: TH 20 Resistance: EX 70 Resistance: EM 20 Resistance: I 45 Resistance: S 20 Resistance: P 20 Evasion (%) 62 Targeting Accuracy 5 Recoil Reduction 2 Offensive Hacking 10 Item Schematics ----------------- None Robot Schematics ------------------ None Fabricated ------------ Nothing Alien Tech Used ----------------- None Achievements -------------- None Challenges ------------ None Polymind | -11 -10 -9 -9 -8 -8 -8 ---------- Run | Jun Mat Mat Min Mat Gar Mat Hosts 9 | 1 . . 2 4 1 1 Combat Hostiles 5 | . . . 1 3 1 . Allies . | . . . . . . . Unique Host Classes 7 | 1 . . 2 3 1 . Average Host Suspicion 53 | 1 10 24 98 50 100 45 Unsuspicious Activity 1073 | 2 5 . 30 1034 . 2 Returns to Shadow 1 | . . . . 1 . . Fuzzy Dispatches . | . . . . . . . Protomatter Created 96 | . . . 38 22 36 . Used 136 | 5 . . 11 85 30 5 Decayed . | . . . . . . . Highest Spend 34 | 5 . . 6 34 30 5 Top 5 Hosts by Kills: S-10 Pest (-9/Mines: 5) G-47 Trooper (-8/Garrison: 2) T-07 Excavator (-9/Mines: 1) Y-45 Defender (-8/Materials: 1) Game ------ Seed takeseed Manual? 1 Play Time 00:12:58 Cumulative 98.8 hours Start 2023.10.05 @ 22:26:14 End 2023.10.05 @ 22:39:07 Sessions 1 Manual Loads 0 Difficulty Adventurer Special Mode Winter2022/Polymind Game No. 22 Rogue 0 Adventurer 22 Explorer 0 Win Type - Total 2 Types 1/0/1/0/0/0/0/0/0 Lore% 46 Gallery% 58 Achievement% 51 Wizard Run 0 Options --------- ASCII 0 Keyboard 0 Movement Numpad Keybinds 0 Fullscreen 2 Font 24/Smallcaps Map View 76x50 Tactical HUD 0 Map Filters NONE Filters NONE Steam 1 RUN: ac631e0e-9025-423e-b905-03b0c5374532